Cogmind - Beta 10.2 @@@ ROGUE MODE // 2021.05.29 @ 15:37:21 Player: Plexion Result: Destroyed by P-80 Master with Gamma Rifle Performance ------------- Evolutions (7) 3500 Regions Visited (26) 5200 Robots Destroyed (137) 685 Value Destroyed (6096) 6096 Prototype IDs (70) 1400 Alien Tech Used (1) 200 Bonus (4540) 4540 TOTAL SCORE: 21621 Bonus ------- High Alert Combat Kills 430 Follower Combat Kills 3079 Network Hubs Disabled 200 Met Data Miner 300 Met Imprinter 300 Was Imprinted 300 Met Zhirov 300 Met Warlord at Base 500 MAIN.C Attacked Warlord 500 Built Enhanced Grunts 300 Met R17 at Cetus 500 Friendly Fire -2169 Cogmind --------- Core Integrity 0/1300 Matter 300/300 Energy 26/100 System Corruption 35% Temperature Cool (21) Movement Core (50) Location -3/Research Parts ------- > --- POWER (2) -------- (None) > --- PROPULSION (4) --- (None) > --- UTILITY (12) ----- Experimental Core Analyzer > --- WEAPON (4) ------- (None) > --- INVENTORY (4) ---- (None) Peak State ------------ > --- POWER ------------ Vortex Chain Reactor > --- PROPULSION ------- Flying Fortress v7 > --- UTILITY ---------- Experimental Heat Sink Medium Storage Unit Advanced Sensor Array Advanced Target Analyzer Experimental Core Analyzer Advanced Actuator Array Improved Transmission Jammer Improved Phase Shifter Centrium Medium Armor Plating Advanced Force Field Experimental System Shield > --- WEAPON ----------- Power Sword Power Sword Kinetic Spear Enhanced Force Lance > --- INVENTORY -------- Light Quantum Reactor Improved KE Penetrator Fusion Bomb Launcher Power Sword [Rating: 152] Favorites ----------- Power Micro Fission Core Engine Light Ion Engine Power Core Micro Fission Core Reactor Vortex Chain Reactor Propulsion Light Treads Treads Light Treads Leg Carbon-fiber Leg Hover Unit Gravmag System Flight Unit Flying Fortress v7 Utility Large Storage Unit Device Advanced Sensor Array Storage Large Storage Unit Processor Advanced Melee Analysis Suite Hackware Experimental Hacking Suite Protection Centrium Medium Armor Plating Weapon EM Pulse Gun Energy Gun EM Pulse Gun Energy Cannon Vortex Cannon Ballistic Gun Gauss Rifle Launcher Rocket Launcher Special Weapon Plasma Cutter Slashing Weapon Great Axe Piercing Weapon Kinetic Spear Build | -11 -10 -10 -10 -9 -8 -7 -7 -7 -7 -6 -6 -6 -6 -6 -5 -5 -5 -5 -5 -4 -4 -4 -4 -4 -4 -3 ------- Run | Scr Mat Min Exi Min Mat Fac Low Low Zio Pro Fac Low Low Dat Pro Fac Upp Upp War Pro Fac Ext Cet Arc Hub Res Slots Evolved 14 | . . . . . 4 2 . . . . 2 . . . . 2 . . . . 2 . . . . 2 Power 1 | . . . . . . . . . . . . . . . . 1 . . . . . . . . . . Propulsion 2 | . . . . . 1 1 . . . . . . . . . . . . . . . . . . . . Utility 10 | . . . . . 3 1 . . . . 1 . . . . 1 . . . . 2 . . . . 2 Weapon 1 | . . . . . . . . . . . 1 . . . . . . . . . . . . . . . Parts Attached 264 | 6 11 . 1 2 21 40 4 . 6 . 12 4 3 1 9 52 4 3 9 2 12 13 13 2 1 33 Power 20 | 1 2 . . . 2 1 . . . . 2 . . . 1 7 . . . . 1 . . . . 3 Engine 7 | 1 2 . . . 2 . . . . . 1 . . . 1 . . . . . . . . . . . Core 10 | . . . . . . 1 . . . . 1 . . . . 7 . . . . . . . . . 1 Reactor 3 | . . . . . . . . . . . . . . . . . . . . . 1 . . . . 2 Propulsion 74 | 2 3 . 1 2 5 17 1 . . . 2 . 1 1 2 16 1 . 2 1 4 2 7 . . 4 Treads 20 | 2 3 . 1 2 5 7 . . . . . . . . . . . . . . . . . . . . Leg 1 | . . . . . . . . . . . . . . . 1 . . . . . . . . . . . Wheel . | . . . . . . . . . . . . . . . . . . . . . . . . . . . Hover 49 | . . . . . . 10 1 . . . 2 . 1 1 . 14 1 . 2 1 4 2 7 . . 3 Flight 4 | . . . . . . . . . . . . . . . 1 2 . . . . . . . . . 1 Utility 99 | 1 3 . . . 3 14 1 . 5 . 4 4 1 . 5 19 2 1 6 1 3 4 6 2 . 14 Device 42 | . . . . . . 9 1 . . . 2 3 . . 1 4 . 1 5 1 1 1 4 . . 9 Storage 8 | 1 3 . . . . 1 . . . . . . . . 1 . . . . . . . . . . 2 Processor 20 | . . . . . . 1 . . 4 . . 1 1 . 1 5 2 . . . 2 . 1 . . 2 Hackware 10 | . . . . . . 2 . . 1 . . . . . . 3 . . 1 . . 1 . 2 . . Protection 19 | . . . . . 3 1 . . . . 2 . . . 2 7 . . . . . 2 1 . . 1 Artifact . | . . . . . . . . . . . . . . . . . . . . . . . . . . . Weapon 71 | 2 3 . . . 11 8 2 . 1 . 4 . 1 . 1 10 1 2 1 . 4 7 . . 1 12 Energy Gun 13 | 2 3 . . . 2 . . . . . . . . . . 1 . 1 . . . . . . . 4 Energy Cannon 7 | . . . . . . . . . . . . . . . . 1 . . 1 . 3 2 . . . . Ballistic Gun 19 | . . . . . 5 4 1 . . . 3 . . . 1 2 . 1 . . . . . . 1 1 Ballistic Cannon . | . . . . . . . . . . . . . . . . . . . . . . . . . . . Launcher 7 | . . . . . 4 1 . . . . . . 1 . . . . . . . . . . . . 1 Special Weapon 1 | . . . . . . 1 . . . . . . . . . . . . . . . . . . . . Impact Weapon . | . . . . . . . . . . . . . . . . . . . . . . . . . . . Slashing Weapon 13 | . . . . . . 2 1 . 1 . 1 . . . . 2 1 . . . . 2 . . . 3 Piercing Weapon 11 | . . . . . . . . . . . . . . . . 4 . . . . 1 3 . . . 3 Special Melee Weapon . | . . . . . . . . . . . . . . . . . . . . . . . . . . . Unidentified Prototypes 24 | . . . . . . 2 . . 6 . . . . 1 . 1 . . 7 . 1 1 3 . 1 1 Parts Lost 108 | . 2 . 1 . 5 13 1 . 1 . 3 . 3 . 12 11 5 . . 4 6 5 2 . 1 33 Power 8 | . . . . . . 1 . . . . . . . . 2 . . . . . 1 . . . . 4 Propulsion 27 | . . . 1 . . 7 1 . . . 1 . 2 . 5 1 1 . . 1 1 2 . . . 4 Utility 39 | . . . . . 3 3 . . 1 . . . 1 . 2 6 2 . . 2 2 . 2 . 1 14 Weapon 34 | . 2 . . . 2 2 . . . . 2 . . . 3 4 2 . . 1 2 3 . . . 11 Highest Loss Streak 19 | . 1 . 1 . 1 3 1 . 1 . 3 . 2 . 8 2 5 . . 3 4 3 2 . 1 19 Average Slot Usage (%) 89 | . 95 100 100 100 90 82 89 92 91 92 89 94 100 93 62 81 92 89 94 89 85 90 93 92 92 79 Engine 3 | . 13 14 14 14 9 1 . . . . . . . . . . . . . . . . . . . . Core 3 | . . . . . . 5 7 7 7 7 5 6 6 6 1 7 11 11 11 11 4 . . . . . Treads 9 | . 27 28 28 28 27 15 . . . . . . . . . . . . . . . . . . . . Hover 12 | . . . . . . 4 28 30 30 30 25 26 26 26 9 12 22 22 22 22 19 19 20 20 20 14 Device 6 | . . . . . . 14 15 15 11 7 3 6 6 6 2 2 . 1 5 3 3 3 9 10 10 20 Storage 14 | . 25 28 28 28 18 15 15 15 15 15 13 13 13 13 12 11 11 11 11 11 7 5 5 5 5 4 Processor 9 | . . . . . . 6 7 7 10 15 13 14 20 13 13 13 19 16 16 16 23 21 15 15 12 9 Hackware 5 | . . . . . . 1 7 7 7 7 6 6 6 6 6 9 11 11 11 11 10 14 13 12 15 5 Protection 2 | . . . . . 17 1 . . . . 2 . . . 3 5 . . . . . 4 5 5 5 3 Energy Gun 6 | . 27 28 28 28 5 . . . . . . . . . . . . . . . . . . . . . Ballistic Gun 3 | . . . . . 11 12 . . . . 6 13 8 6 1 1 . 4 5 2 . . . . 2 . Slashing Weapon 4 | . . . . . . . 6 7 7 7 9 6 6 6 6 2 10 11 11 11 7 4 10 10 7 6 Piercing Weapon 2 | . . . . . . . . . . . . . . . . 10 7 . . . 3 8 10 10 10 9 Naked Turns . | . . . . . . . . . . . . . . . . . . . . . . . . . . . Heaviest Build 92 | 11 39 39 39 39 52 54 37 37 37 36 44 41 42 42 48 57 45 48 48 48 62 74 66 64 67 92 Greatest Support 88 | 40 40 40 40 40 60 88 46 46 46 46 49 49 49 51 72 72 66 57 68 68 77 73 74 74 74 75 Greatest Overweight (x) 5 | . 1 . 1 . . 1 1 . . . . . 1 . 1 1 . . . . 1 1 1 . . 5 Average Overweight (x) . | . . . . . . . . . . . . . . . . . . . . . . . . . . . Largest Inventory Capacity 18 | 6 16 16 16 16 16 16 14 14 14 14 14 14 14 14 18 14 14 14 14 14 14 8 8 8 8 12 Average Capacity 13 | 5 13 16 16 16 16 15 14 14 14 14 14 14 14 14 14 14 14 14 14 14 10 8 8 8 8 7 Most Carried 16 | 2 12 16 16 16 16 16 14 14 14 14 14 14 14 13 12 14 14 14 14 14 12 8 8 8 8 12 Average Carried 11 | 1 7 14 13 15 14 14 12 14 14 13 12 12 13 12 9 11 13 12 13 13 8 6 7 8 8 7 Final Capacity 16 | 6 16 16 16 16 16 14 14 14 14 14 14 14 14 14 14 14 14 14 14 14 8 8 8 8 8 4 Final Carried 16 | 2 12 16 15 16 16 14 14 14 14 14 12 14 14 12 6 14 12 14 14 12 8 8 8 8 8 . Class Distribution -------------------- 40% | Scavenger-Mutant 26% | Hacker-Mutant 25% | Mutant 5% | Commander-Mutant Dominant Class ---------------- Mutant | -10/Materials Mutant | -10/Mines Mutant | -10/Exiles Mutant | -9/Mines Scavenger-Mutant | -8/Materials Scavenger-Mutant | -7/Factory Scavenger-Mutant | -7/Lower Caves Scavenger-Mutant | -7/Lower Caves Scavenger-Mutant | -7/Zion Scavenger-Mutant | -6/Proximity Caves Scavenger-Mutant | -6/Factory Scavenger-Mutant | -6/Lower Caves Scavenger-Mutant | -6/Lower Caves Mutant | -6/Data Miner Mutant | -5/Proximity Caves Hacker-Mutant | -5/Factory Hacker-Mutant | -5/Upper Caves Hacker-Mutant | -5/Upper Caves Hacker-Mutant | -5/Warlord Hacker-Mutant | -4/Proximity Caves Hacker-Mutant | -4/Factory Hacker-Mutant | -4/Extension Hacker-Mutant | -4/Cetus Hacker-Mutant | -4/Archives Hacker-Mutant | -4/Hub_04(d) Scavenger-Mutant | -3/Research Resources | -11 -10 -10 -10 -9 -8 -7 -7 -7 -7 -6 -6 -6 -6 -6 -5 -5 -5 -5 -5 -4 -4 -4 -4 -4 -4 -3 ----------- Run | Scr Mat Min Exi Min Mat Fac Low Low Zio Pro Fac Low Low Dat Pro Fac Upp Upp War Pro Fac Ext Cet Arc Hub Res Matter Collected 3756 | 233 127 . 10 20 393 748 103 . 75 165 45 44 88 . 210 648 22 55 96 50 81 120 120 . . 303 Remotely . | . . . . . . . . . . . . . . . . . . . . . . . . . . . Salvage Created 7792 | 20 338 . 298 70 846 897 74 . . . 153 10 158 . 417 1349 58 . . 319 153 753 111 146 29 1593 Parts 404 | 4 32 . 8 10 49 60 . . . . 10 2 4 . 10 57 7 . . 15 4 23 2 8 6 93 Haulers Intercepted 3 | . 1 . . . 1 1 . . . . . . . . . . . . . . . . . . . . Recyclers Shooed 5 | . 1 . . . . 3 . . . . . . . . . . . . . . . 1 . . . . Parts Field Recycled . | . . . . . . . . . . . . . . . . . . . . . . . . . . . Retrieved Matter . | . . . . . . . . . . . . . . . . . . . . . . . . . . . Parts Self-Destructed 105 | . . . . . . . . . . 23 . . 6 . 14 . 7 . 38 17 . . . . . . Prevented 6 | . . . . . . . . . . . . . . . . . . . 6 . . . . . . . Kills | -11 -10 -10 -10 -9 -8 -7 -7 -7 -7 -6 -6 -6 -6 -6 -5 -5 -5 -5 -5 -4 -4 -4 -4 -4 -4 -3 ------- Run | Scr Mat Min Exi Min Mat Fac Low Low Zio Pro Fac Low Low Dat Pro Fac Upp Upp War Pro Fac Ext Cet Arc Hub Res Combat Hostiles Destroyed 108 | . 9 . . . 20 12 1 . . . 4 . 4 . 6 15 1 . . 7 2 10 . . . 17 Melee 51 | . . . . . . 4 . . . . 1 . . . 4 13 1 . . 5 2 6 . . . 15 Guns 32 | . 8 . . . 10 7 1 . . . 3 . . . . . . . . 2 . . . . . 1 Cannons 5 | . . . . . . 1 . . . . . . . . . . . . . . . 4 . . . . AOE 20 | . 1 . . . 10 . . . . . . . 4 . 2 2 . . . . . . . . . 1 Classes Destroyed 19 | 1 4 . 1 . 6 3 1 . . . . 1 . . . . . . . . . 2 . . . . Worker 3 | . 1 . . 1 . . . . . . . . . . . . . . . . . . . . . 1 Builder 4 | . . . . . 2 . . . . . . . . . . . . . . . . . . . 1 1 Tunneler 3 | 1 . . . 2 . . . . . . . . . . . . . . . . . . . . . . Hauler 3 | . 1 . . . 1 1 . . . . . . . . . . . . . . . . . . . . Recycler 7 | . . . . . . 2 . . . . . . . . . 3 . . . . . 1 . . . 1 Operator 1 | . . . . . 1 . . . . . . . . . . . . . . . . . . . . . Watcher 4 | . . . . . 1 . . . . . . . . . . 1 . . . . . . . . . 2 Swarmer 22 | . 6 . . . . . . . . . 3 . . . 2 4 . . . 4 . 3 . . . . Grunt 35 | . 3 . . . 15 1 . . . . . . 4 . 1 . . . . 3 . 3 . . . 5 Brawler 2 | . . . . . 1 . . . . . . . . . . . . . . . . . . . . 1 Duelist 1 | . . . . . 1 . . . . . . . . . . . . . . . . . . . . . Sentry 17 | . . . . . 3 4 . . . . 1 . . . 1 4 . . . . . 2 . . . 2 Demolisher 1 | . . . . . . . . . . . . . . . . . . . . . . 1 . . . . Hunter 6 | . . . . . . 1 . . . . . . . . . . . . . . 2 . . . . 3 Programmer 22 | . . . . . . 6 . . . . . . . . 2 7 1 . . . . . . . . 6 Behemoth 1 | . . . . . . . . . . . . . . . . . . . . . . 1 . . . . Zionite 1 | . . . 1 . . . . . . . . . . . . . . . . . . . . . . . Z-Courier 3 | . . . . . . . . . . . . . . . . 1 . . . . . . 1 . . 1 Tinkerer 1 | . . . . . . . . . . . . 1 . . . . . . . . . . . . . . Thief 1 | . . . . . . . 1 . . . . . . . . . . . . . . . . . . . Thug 2 | . . . 2 . . . . . . . . . . . . . . . . . . . . . . . Butcher 1 | . . . . . . . . . . . . . . . . . . . . . . 1 . . . . Best Kill Streak 9 | 1 8 . . 2 9 2 1 . . . 3 . 4 . 2 5 1 . . 7 2 3 . . 1 8 Combat Bots Only 7 | . 6 . . . 7 2 1 . . . 3 . 4 . 2 4 1 . . 7 2 3 . . . 7 Max Kills in Single Turn 2 | 1 1 . 1 1 2 1 1 . . . 1 1 2 . 2 2 1 . . 1 1 1 1 . 1 2 Gunslinging . | . . . . . . . . . . . . . . . . . . . . . . . . . . . Exploded 2 | . 1 . . . 2 . . . . . . . 2 . 2 2 . . . . . . . . . 1 Melee 1 | . . . . . . 1 . . . . 1 . . . 1 1 1 . . 1 1 1 . . . 1 Uniques/NPCs Destroyed . | . . . . . . . . . . . . . . . . . . . . . . . . . . . Combat | -11 -10 -10 -10 -9 -8 -7 -7 -7 -7 -6 -6 -6 -6 -6 -5 -5 -5 -5 -5 -4 -4 -4 -4 -4 -4 -3 -------- Run | Scr Mat Min Exi Min Mat Fac Low Low Zio Pro Fac Low Low Dat Pro Fac Upp Upp War Pro Fac Ext Cet Arc Hub Res Damage Taken 14855 | . 402 45 92 24 927 1649 52 . . . 483 . 269 . 1198 2620 415 . 12 600 788 541 193 48 96 4401 Core 3105 | . 68 16 . 10 61 159 . . . . 123 . . . 410 607 39 . . 115 81 99 11 . . 1306 Absorbed by Shields 693 | . . . . . . . . . . . . . . . . . . . 12 . . 136 10 . . 535 Core Remaining (%) 67 | 100 . . . 62 88 . . . . 77 . . . . 37 . . . . 23 . . . . 83 . Volleys Fired 240 | 1 27 2 18 8 59 46 10 . . . 14 . 5 . 4 12 . . . 9 4 13 . . 1 7 Largest 2 | 2 2 2 2 2 2 2 1 . . . 2 . 1 . 1 1 . . . 1 1 1 . . 1 1 Hottest 100 | 100 100 80 80 80 80 58 28 . . . 51 . 33 . 33 65 . . . 33 88 50 . . 35 75 Shots Fired 389 | 2 52 4 36 16 101 88 9 . . . 26 . 5 . 4 12 . 1 . 9 4 13 . . 1 6 Gun 341 | 2 52 4 36 16 84 83 9 . . . 26 . . . 1 12 . 1 . 9 . . . . 1 5 Cannon 17 | . . . . . . . . . . . . . . . . . . . . . 4 13 . . . . Launcher 26 | . . . . . 17 . . . . . . . 5 . 3 . . . . . . . . . . 1 Special 5 | . . . . . . 5 . . . . . . . . . . . . . . . . . . . . Kinetic 207 | . . . . . 64 83 9 . . . 26 . . . 1 9 . 1 . 9 . . . . 1 4 Thermal 38 | 2 31 . . . . 5 . . . . . . . . . . . . . . . . . . . . Explosive 26 | . . . . . 17 . . . . . . . 5 . 3 . . . . . . . . . . 1 Electromagnetic 105 | . 21 4 36 16 20 . . . . . . . . . . 3 . . . . 4 . . . . 1 Entropic 13 | . . . . . . . . . . . . . . . . . . . . . . 13 . . . . Robot Hit Streak 28 | 1 12 1 19 20 11 28 8 . . . 3 . 3 . 7 2 . . . 3 3 8 . . . 11 Robot Miss Streak 4 | 1 3 1 2 1 3 4 1 . . . 3 . 2 . . 2 . . . 1 1 1 . . . 1 Penetration Max 1 | . . . . . . 1 . . . . . . . . . . . . . . . . . . . 1 Secondary Targets 1 | . 1 . . . . . . . . . . . . . . . . . . . . . . . . . Max Gunslinging Chain 1 | . 1 . . . . . . . . . . . . . . . . . . . . . . . . . Shots Hit Robots 469 | 1 32 2 32 11 69 68 11 . . . 17 1 4 . 24 59 7 . . 20 10 33 4 6 . 58 Core Hits 281 | 1 15 . 9 5 60 27 3 . . . 8 1 12 . 22 29 2 . . 10 8 17 1 4 1 46 Critical Hits 20 | . . . . . 3 3 . . . . . . . . . 1 . . . 2 2 . . . . 9 Critical Kills 8 | . . . . . . 1 . . . . . . . . . 1 . . . 2 . . . . . 4 Critical Parts Destroyed 8 | . . . . . 2 2 . . . . . . . . . . . . . . 1 . . . . 3 Melee Attacks 406 | . . . . . . 19 6 . . 3 16 4 19 . 28 95 17 . . 15 19 32 9 7 . 117 Impact . | . . . . . . . . . . . . . . . . . . . . . . . . . . . Slashing 209 | . . . . . . 19 6 . . 3 16 4 19 . 28 17 12 . . 15 3 14 7 6 . 40 Piercing 197 | . . . . . . . . . . . . . . . . 78 5 . . . 16 18 2 1 . 77 Sneak Attacks 28 | . . . . . . 1 . . . . . 1 . . 4 4 . . . . . 9 3 . . 6 Combat Hostiles 5 | . . . . . . . . . . . . . . . 4 . . . . . . 1 . . . . Follow-up Attacks 45 | . . . . . . . . . . . 1 . . . . 9 4 . . 1 1 7 1 1 . 20 Damage Inflicted 19895 | 12 373 12 593 213 2784 1853 469 . . . 371 135 404 . 1578 2991 232 . . 716 414 2136 411 983 131 3084 Guns 3880 | 12 338 12 408 167 980 1137 147 . . . 178 . . . 23 198 . . . 154 . . . . . 126 Cannons 864 | . . . . . . . . . . . . . . . . . . . . . 79 785 . . . . Explosions 3190 | . 35 . 185 42 1804 . . . . . . . 371 . 230 164 . . . . . . . . 131 228 Melee 11856 | . . . . . . 629 322 . . . 193 135 33 . 1325 2629 232 . . 548 335 1351 411 983 . 2730 Ramming 47 | . . . . 4 . 29 . . . . . . . . . . . . . 14 . . . . . . Kinetic 2737 | . . . . . 825 1137 147 . . . 178 . . . 23 178 . . . 154 . . . . . 95 Thermal 763 | 12 174 . 185 42 128 58 . . . . . . . . . 164 . . . . . . . . . . Explosive 2505 | . . . . . 1676 . . . . . . . 371 . 230 . . . . . . . . . . 228 Electromagnetic 1202 | . 199 12 408 167 155 . . . . . . . . . . 20 . . . . 79 . . . 131 31 Impact . | . . . . . . . . . . . . . . . . . . . . . . . . . . . Slashing 6303 | . . . . . . 629 322 . . . 193 135 33 . 1325 359 192 . . 548 32 588 282 869 . 796 Piercing 5553 | . . . . . . . . . . . . . . . . 2270 40 . . . 303 763 129 114 . 1934 Entropic 785 | . . . . . . . . . . . . . . . . . . . . . . 785 . . . . Highest Corruption 35 | . . . . . 1 10 10 10 10 . . . . . 10 4 6 6 6 . . . . . . 35 Average Corruption 7 | . . . . . 1 6 10 10 10 . . . . . 9 3 4 6 6 . . . . . . 13 Corruption Purged . | . . . . . . . . . . . . . . . . . . . . . . . . . . . Effects 178 | . . . . . 1 59 12 8 . . . . . . 9 25 6 3 1 . . . . . . 54 Message Errors 32 | . . . . . 1 8 3 . . . . . . . 2 7 2 1 . . . . . . . 8 Matter Fused 31 | . . . . . . 15 2 2 . . . . . . . 6 1 1 . . . . . . . 4 Heat Flow Errors 17 | . . . . . . 6 . 1 . . . . . . . 4 1 . 1 . . . . . . 4 Energy Discharges 22 | . . . . . . 5 2 . . . . . . . 3 2 1 . . . . . . . . 9 Parts Rejected 2 | . . . . . . 1 . . . . . . . . . . . . . . . . . . . 1 Data Loss (minor) 10 | . . . . . . 3 1 1 . . . . . . . 4 . . . . . . . . . 1 Data Loss (major) 5 | . . . . . . 2 . . . . . . . . 1 . . . . . . . . . . 2 Misfires 4 | . . . . . . 3 . . . . . . . . . . . 1 . . . . . . . . Alerts 1 | . . . . . . 1 . . . . . . . . . . . . . . . . . . . . Misdirections 24 | . . . . . . 5 3 4 . . . . . . 3 . . . . . . . . . . 9 Targeting Errors 26 | . . . . . . 8 . . . . . . . . . 2 1 . . . . . . . . 15 Weapon Failures 4 | . . . . . . 2 1 . . . . . . . . . . . . . . . . . . 1 Overload Shots . | . . . . . . . . . . . . . . . . . . . . . . . . . . . Overflow Damage 1185 | . . . 1 . 14 2 32 . . . 4 . . . 463 207 . . . 32 40 71 . 242 12 65 Projectiles . | . . . . . . . . . . . . . . . . . . . . . . . . . . . Explosions 35 | . . . 1 . 14 . . . . . . . . . . 4 . . . . . . . . 12 4 Melee 1150 | . . . . . . 2 32 . . . 4 . . . 463 203 . . . 32 40 71 . 242 . 61 Knockbacks . | . . . . . . . . . . . . . . . . . . . . . . . . . . . Impact . | . . . . . . . . . . . . . . . . . . . . . . . . . . . Kinetic . | . . . . . . . . . . . . . . . . . . . . . . . . . . . Secondary . | . . . . . . . . . . . . . . . . . . . . . . . . . . . Self-Inflicted Damage 380 | . . . 94 . 32 . . . . . . . 12 . . 35 . . . 7 . . . . 97 103 Shots 7 | . . . 2 . 1 . . . . . . . 1 . . 1 . . . . . . . . 1 1 Rammed 5 | . . . . 1 . 3 . . . . . . . . . . . . . 1 . . . . . . Targets Rammed 5 | . . . . 1 . 3 . . . . . . . . . . . . . 1 . . . . . . Kicked . | . . . . . . . . . . . . . . . . . . . . . . . . . . . Crushed . | . . . . . . . . . . . . . . . . . . . . . . . . . . . Highest Temperature 448 | 39 401 45 204 42 94 156 . 194 343 . . . . . 4 448 98 14 172 216 82 185 16 . . 231 Average Temperature 93 | 20 137 24 89 16 24 44 . 103 170 . . . . . 2 197 35 8 86 81 30 36 8 . . 87 Received Heat Transfer 1933 | . 75 27 . 6 423 228 . . . . 30 . 54 . 180 183 153 . . 63 24 56 15 . . 416 Effects 15 | . . . . . . . . . . . . . . . . 13 . . . 2 . . . . . . Shutdowns 4 | . . . . . . . . . . . . . . . . 4 . . . . . . . . . . Energy Bleed 1 | . . . . . . . . . . . . . . . . 1 . . . . . . . . . . Interference 5 | . . . . . . . . . . . . . . . . 3 . . . 2 . . . . . . Matter Decay 2 | . . . . . . . . . . . . . . . . 2 . . . . . . . . . . Short Circuit 1 | . . . . . . . . . . . . . . . . 1 . . . . . . . . . . Damage (minor) 2 | . . . . . . . . . . . . . . . . 2 . . . . . . . . . . Siege Activations . | . . . . . . . . . . . . . . . . . . . . . . . . . . . Robots Corrupted 3 | . . . 3 . . . . . . . . . . . . . . . . . . . . . . . Combat Hostiles . | . . . . . . . . . . . . . . . . . . . . . . . . . . . Parts Fried 7 | . 1 . 4 . . . . . . . . . . . . . . . . . 2 . . . . . Impact Corruptions . | . . . . . . . . . . . . . . . . . . . . . . . . . . . Robots Melted . | . . . . . . . . . . . . . . . . . . . . . . . . . . . Combat Hostiles . | . . . . . . . . . . . . . . . . . . . . . . . . . . . Parts Melted 2 | . . . . . . . . . . . . . . . . . . . . . . 1 . . . 1 Heat Transferred 1229 | 37 457 . 150 100 150 185 . . . . . . . . . 150 . . . . . . . . . . Parts Sabotaged . | . . . . . . . . . . . . . . . . . . . . . . . . . . . Parts Stolen . | . . . . . . . . . . . . . . . . . . . . . . . . . . . Parts Stripped . | . . . . . . . . . . . . . . . . . . . . . . . . . . . Power Chain Reactions 6 | . 1 . 2 1 1 . . . . . . . . . . 1 . . . . . . . . . . Missiles Intercepted . | . . . . . . . . . . . . . . . . . . . . . . . . . . . Alert | -11 -10 -10 -10 -9 -8 -7 -7 -7 -7 -6 -6 -6 -6 -6 -5 -5 -5 -5 -5 -4 -4 -4 -4 -4 -4 -3 ------- Run | Scr Mat Min Exi Min Mat Fac Low Low Zio Pro Fac Low Low Dat Pro Fac Upp Upp War Pro Fac Ext Cet Arc Hub Res Peak Influence 1207 | 5 195 92 . 97 550 271 . . . . 289 . . . . 522 . . . . 375 1007 1207 868 419 464 Initial 563 | . 3 36 . . 14 211 . . . . 147 . . . . . . . . . 151 168 563 482 247 219 Average 237 | 1 87 23 . 42 305 94 . . . . 214 . . . . 296 . . . . 223 579 844 689 267 345 Maximum Alert Level 4 | . . . . . 2 1 . . . . 1 . . . . 2 . . . . 1 3 4 3 2 2 Low Security (%) 52 | 100 100 100 . 100 29 78 . . . . 41 . . . . 33 . . . . 49 4 . . . . Level 1 27 | . . . . . 27 21 . . . . 58 . . . . 37 . . . . 50 24 . . 88 78 Level 2 13 | . . . . . 43 . . . . . . . . . . 29 . . . . . 38 20 39 11 21 Level 3 4 | . . . . . . . . . . . . . . . . . . . . . . 31 52 60 . . Level 4 1 | . . . . . . . . . . . . . . . . . . . . . . . 26 . . . Level 5 . | . . . . . . . . . . . . . . . . . . . . . . . . . . . High Security . | . . . . . . . . . . . . . . . . . . . . . . . . . . . Max Security . | . . . . . . . . . . . . . . . . . . . . . . . . . . . Squads Dispatched 29 | . 1 . . . 4 8 . . . . . . . . . 4 . . . 1 2 4 . . . 5 Investigation 5 | . . . . . . 1 . . . . . . . . . 1 . . . . 1 1 . . . 1 Extermination 8 | . . . . . . 5 . . . . . . . . . 1 . . . . . . . . . 2 Reinforcement 11 | . 1 . . . 4 2 . . . . . . . . . 1 . . . . 1 1 . . . 1 Assault 4 | . . . . . . . . . . . . . . . . . . . . 1 . 2 . . . 1 Garrison 1 | . . . . . . . . . . . . . . . . 1 . . . . . . . . . . Intercept . | . . . . . . . . . . . . . . . . . . . . . . . . . . . Construction Impeded 3 | . . . . . 1 . . . . . . . . . . 1 . . . . . 1 . . . . Haulers Reinforced 1 | . . . . . . 1 . . . . . . . . . . . . . . . . . . . . Stealth | -11 -10 -10 -10 -9 -8 -7 -7 -7 -7 -6 -6 -6 -6 -6 -5 -5 -5 -5 -5 -4 -4 -4 -4 -4 -4 -3 --------- Run | Scr Mat Min Exi Min Mat Fac Low Low Zio Pro Fac Low Low Dat Pro Fac Upp Upp War Pro Fac Ext Cet Arc Hub Res Distress Signals 15 | . 1 . . . 2 . . . . . . . . . . 2 . . . . 1 7 1 . . 1 Communications Jammed 20 | . . . . . . . . . . . . . . . . . . . . . . . . . . 20 Distress Signals 20 | . . . . . . . . . . . . . . . . . . . . . . . . . . 20 Times Spotted 323 | . 19 2 . 7 44 14 1 . . 8 6 . 8 . 9 41 5 . 8 16 19 33 20 18 . 45 Peak Tracking Total 16 | . 4 2 . 3 5 2 1 . . 4 3 . 4 . 8 8 5 . 7 13 6 7 9 16 . 12 Tactical Retreats 28 | . 1 . . . 6 . . . . 1 . . . . 1 4 2 . . 3 2 3 . . . 5 Traps | -11 -10 -10 -10 -9 -8 -7 -7 -7 -7 -6 -6 -6 -6 -6 -5 -5 -5 -5 -5 -4 -4 -4 -4 -4 -4 -3 ------- Run | Scr Mat Min Exi Min Mat Fac Low Low Zio Pro Fac Low Low Dat Pro Fac Upp Upp War Pro Fac Ext Cet Arc Hub Res Traps Triggered 17 | . 3 . . . 1 4 . . . . . . . . . 4 . . . . . 3 . . . 2 Indirectly . | . . . . . . . . . . . . . . . . . . . . . . . . . . . Trap Hack Attempts . | . . . . . . . . . . . . . . . . . . . . . . . . . . . Triggered . | . . . . . . . . . . . . . . . . . . . . . . . . . . . Disarmed . | . . . . . . . . . . . . . . . . . . . . . . . . . . . Reprogrammed . | . . . . . . . . . . . . . . . . . . . . . . . . . . . Reused . | . . . . . . . . . . . . . . . . . . . . . . . . . . . Traps Extracted . | . . . . . . . . . . . . . . . . . . . . . . . . . . . Installed . | . . . . . . . . . . . . . . . . . . . . . . . . . . . Triggered 11 | . . . . . . . 1 1 . . . . . . . . . . 9 . . . . . . . Machines | -11 -10 -10 -10 -9 -8 -7 -7 -7 -7 -6 -6 -6 -6 -6 -5 -5 -5 -5 -5 -4 -4 -4 -4 -4 -4 -3 ---------- Run | Scr Mat Min Exi Min Mat Fac Low Low Zio Pro Fac Low Low Dat Pro Fac Upp Upp War Pro Fac Ext Cet Arc Hub Res Machines Disabled 17 | . . . . . . 1 . . . . . . . . . 6 . . . . 1 1 3 2 3 . Max in Single Turn 3 | . . . . . . 1 . . . . . . . . . . . . . . . . 1 . 3 . Garrison Access 5 | . . . . . . . . . . . . . . . . 3 . . . . 1 . . . . 1 Network Hub 1 | . . . . . . . . . . . . . . . . . . . . . . . . . 1 . Machines Sabotaged . | . . . . . . . . . . . . . . . . . . . . . . . . . . . Garrisons Compromised . | . . . . . . . . . . . . . . . . . . . . . . . . . . . Overloaded Fab Kills . | . . . . . . . . . . . . . . . . . . . . . . . . . . . Fab Network Shutdowns . | . . . . . . . . . . . . . . . . . . . . . . . . . . . Hacking | -11 -10 -10 -10 -9 -8 -7 -7 -7 -7 -6 -6 -6 -6 -6 -5 -5 -5 -5 -5 -4 -4 -4 -4 -4 -4 -3 --------- Run | Scr Mat Min Exi Min Mat Fac Low Low Zio Pro Fac Low Low Dat Pro Fac Upp Upp War Pro Fac Ext Cet Arc Hub Res Machines Accessed 30 | . 1 . 2 . 2 5 . . . . . . . 4 . 8 . 1 2 . 3 . . . . 2 Terminals 7 | . 1 . . . 2 4 . . . . . . . . . . . . . . . . . . . . Fabricators 6 | . . . . . . . . . . . . . . . . 3 . . . . 2 . . . . 1 Repair Stations . | . . . . . . . . . . . . . . . . . . . . . . . . . . . Recycling Units . | . . . . . . . . . . . . . . . . . . . . . . . . . . . Scanalyzers 2 | . . . . . . . . . . . . . . . . 2 . . . . . . . . . . Garrison Access 6 | . . . . . . 1 . . . . . . . . . 3 . . . . 1 . . . . 1 Total Hacks 90 | . 3 . 2 . 3 13 . . . . . . . 29 . 19 . 1 2 . 10 . . . . 8 Successful 64 | . 2 . 2 . 1 2 . . . . . . . 29 . 13 . 1 2 . 9 . . . . 3 Failed 25 | . . . . . 2 11 . . . . . . . . . 6 . . . . 1 . . . . 5 Catastrophic 4 | . . . . . . 3 . . . . . . . . . . . . . . . . . . . 1 Database Lockouts 1 | . 1 . . . . . . . . . . . . . . . . . . . . . . . . . Manual 89 | . 3 . 1 . 3 6 . . . . 7 . . . . 20 . . 1 . 8 16 15 . . 9 Terminals 16 | . 3 . . . 3 10 . . . . . . . . . . . . . . . . . . . . Fabricators 22 | . . . . . . . . . . . . . . . . 7 . . . . 9 . . . . 6 Repair Stations . | . . . . . . . . . . . . . . . . . . . . . . . . . . . Recycling Units . | . . . . . . . . . . . . . . . . . . . . . . . . . . . Scanalyzers 4 | . . . . . . . . . . . . . . . . 4 . . . . . . . . . . Garrison Access 14 | . . . . . . 3 . . . . . . . . . 8 . . . . 1 . . . . 2 Terminal Hacks 38 | . 1 . 2 . 1 2 . . . . . . . 29 . . . 1 2 . . . . . . . Record 14 | . . . 1 . . 2 . . . . . . . 11 . . . . . . . . . . . . Part Schematic 8 | . . . . . . . . . . . . . . 8 . . . . . . . . . . . . Robot Schematic 7 | . . . . . . . . . . . . . . 7 . . . . . . . . . . . . Robot Analysis 1 | . 1 . . . . . . . . . . . . . . . . . . . . . . . . . Prototype ID Bank 3 | . . . . . . . . . . . . . . 3 . . . . . . . . . . . . Open Door 3 | . . . . . . . . . . . . . . . . . . 1 2 . . . . . . . Unreport Threat 1 | . . . . . 1 . . . . . . . . . . . . . . . . . . . . . EX-Prototype ID Bank 1 | . . . 1 . . . . . . . . . . . . . . . . . . . . . . . Fabricator Hacks 12 | . . . . . . . . . . . . . . . . 6 . . . . 4 . . . . 2 Load Schematic 6 | . . . . . . . . . . . . . . . . 3 . . . . 2 . . . . 1 Build 6 | . . . . . . . . . . . . . . . . 3 . . . . 2 . . . . 1 Repair Station Hacks . | . . . . . . . . . . . . . . . . . . . . . . . . . . . Recycling Unit Hacks . | . . . . . . . . . . . . . . . . . . . . . . . . . . . Scanalyzer 4 | . . . . . . . . . . . . . . . . 4 . . . . . . . . . . Insert Component 2 | . . . . . . . . . . . . . . . . 2 . . . . . . . . . . Analyze 2 | . . . . . . . . . . . . . . . . 2 . . . . . . . . . . Garrison Access Hacks 5 | . . . . . . . . . . . . . . . . 3 . . . . 1 . . . . 1 Seal Access 5 | . . . . . . . . . . . . . . . . 3 . . . . 1 . . . . 1 Unauthorized Hacks 5 | . 1 . . . . . . . . . . . . . . . . . . . 4 . . . . . Terminals 1 | . 1 . . . . . . . . . . . . . . . . . . . . . . . . . Track 1 | . 1 . . . . . . . . . . . . . . . . . . . . . . . . . Fabricators 4 | . . . . . . . . . . . . . . . . . . . . . 4 . . . . . Prioritize 2 | . . . . . . . . . . . . . . . . . . . . . 2 . . . . . Siphon 2 | . . . . . . . . . . . . . . . . . . . . . 2 . . . . . Repair Stations . | . . . . . . . . . . . . . . . . . . . . . . . . . . . Recycling Units . | . . . . . . . . . . . . . . . . . . . . . . . . . . . Scanalyzers . | . . . . . . . . . . . . . . . . . . . . . . . . . . . Garrison Access . | . . . . . . . . . . . . . . . . . . . . . . . . . . . Data Cores Recovered . | . . . . . . . . . . . . . . . . . . . . . . . . . . . Used . | . . . . . . . . . . . . . . . . . . . . . . . . . . . Hacking Detections 14 | . . . . . 2 5 . . . . . . . . . 5 . . . . 1 . . . . 1 Full Trace Events 1 | . . . . . . 1 . . . . . . . . . . . . . . . . . . . . Feedback Events . | . . . . . . . . . . . . . . . . . . . . . . . . . . . Feedback Blocked . | . . . . . . . . . . . . . . . . . . . . . . . . . . . Robot Schematics Acquired 10 | . . . . . . . . . . . . . . 7 . . . . . . . . 3 . . . Robots Built . | . . . . . . . . . . . . . . . . . . . . . . . . . . . Matter . | . . . . . . . . . . . . . . . . . . . . . . . . . . . Time . | . . . . . . . . . . . . . . . . . . . . . . . . . . . Total Robot Build Rating . | . . . . . . . . . . . . . . . . . . . . . . . . . . . Part Schematics Acquired 37 | . . . . . . . . . . . . . . 8 . 2 . . . . . 11 16 . . . Parts Built 6 | . . . . . . . . . . . . . . . . 4 . . . . 1 . . . . 1 Matter 1718 | . . . . . . . . . . . . . . . . 848 . . . . 636 . . . . 234 Time 617 | . . . . . . . . . . . . . . . . 306 . . . . 253 . . . . 58 Total Part Build Rating 37 | . . . . . . . . . . . . . . . . 24 . . . . 6 . . . . 7 Parts Repaired . | . . . . . . . . . . . . . . . . . . . . . . . . . . . Time . | . . . . . . . . . . . . . . . . . . . . . . . . . . . Parts Recycled . | . . . . . . . . . . . . . . . . . . . . . . . . . . . Recycled Matter . | . . . . . . . . . . . . . . . . . . . . . . . . . . . Retrieved Matter . | . . . . . . . . . . . . . . . . . . . . . . . . . . . Retrieved Components . | . . . . . . . . . . . . . . . . . . . . . . . . . . . Parts Scanalyzed 2 | . . . . . . . . . . . . . . . . 2 . . . . . . . . . . Part Schematics Acquired 2 | . . . . . . . . . . . . . . . . 2 . . . . . . . . . . Parts Damaged . | . . . . . . . . . . . . . . . . . . . . . . . . . . . Bothacking | -11 -10 -10 -10 -9 -8 -7 -7 -7 -7 -6 -6 -6 -6 -6 -5 -5 -5 -5 -5 -4 -4 -4 -4 -4 -4 -3 ------------ Run | Scr Mat Min Exi Min Mat Fac Low Low Zio Pro Fac Low Low Dat Pro Fac Upp Upp War Pro Fac Ext Cet Arc Hub Res Used RIF Installer . | . . . . . . . . . . . . . . . . . . . . . . . . . . . Robots Hacked . | . . . . . . . . . . . . . . . . . . . . . . . . . . . Non-combat . | . . . . . . . . . . . . . . . . . . . . . . . . . . . Combat . | . . . . . . . . . . . . . . . . . . . . . . . . . . . Robot Hacks Applied . | . . . . . . . . . . . . . . . . . . . . . . . . . . . Relay Couplers Released 2 | . . . . . . . . . . . . . . . . 2 . . . . . . . . . . Programmers 2 | . . . . . . . . . . . . . . . . 2 . . . . . . . . . . Robots Rewired 21 | . . . 4 . . . . . . . . . . . . . . . 3 . . 14 . . . . Allies Hacked 1 | . . . . . . . . . . . . . . . . . . . . . . . . . . 1 Hacks Repelled . | . . . . . . . . . . . . . . . . . . . . . . . . . . . Allies | -11 -10 -10 -10 -9 -8 -7 -7 -7 -7 -6 -6 -6 -6 -6 -5 -5 -5 -5 -5 -4 -4 -4 -4 -4 -4 -3 -------- Run | Scr Mat Min Exi Min Mat Fac Low Low Zio Pro Fac Low Low Dat Pro Fac Upp Upp War Pro Fac Ext Cet Arc Hub Res Total Allies 78 | . . 3 4 . . . . . 12 . . . . . 1 12 . . 3 . 3 25 12 . . 3 Largest Group 23 | . . 3 4 4 2 . . . 12 12 . . . . 1 3 . . 3 . 3 23 18 16 . 2 Highest-Rated Group 1203 | . . 77 77 58 42 . . . 356 356 . . . . 94 197 . . 155 . 210 1203 1189 1141 . 206 Highest-Rated Ally 156 | . . 31 31 21 21 . . . 40 40 . . . . 94 85 . . 60 . 70 156 131 103 . 103 Zionite Dispatches 16 | . . . . . . . . . . . . . . . . 6 . . . . 1 4 3 . . 2 Heavy 5 | . . . . . . . . . . . . . . . . 3 . . . . . 1 . . . 1 Light 2 | . . . . . . . . . . . . . . . . . . . . . . . 2 . . . Fire 1 | . . . . . . . . . . . . . . . . 1 . . . . . . . . . . Hacker 1 | . . . . . . . . . . . . . . . . . . . . . 1 . . . . . Kinetic Resupply 1 | . . . . . . . . . . . . . . . . 1 . . . . . . . . . . Melee Resupply 1 | . . . . . . . . . . . . . . . . . . . . . . 1 . . . . Resource Resupply 1 | . . . . . . . . . . . . . . . . . . . . . . 1 . . . . Offense Resupply 1 | . . . . . . . . . . . . . . . . 1 . . . . . . . . . . Infowar Resupply 1 | . . . . . . . . . . . . . . . . . . . . . . . . . . 1 Hacking Resupply 1 | . . . . . . . . . . . . . . . . . . . . . . 1 . . . . Hover Resupply 1 | . . . . . . . . . . . . . . . . . . . . . . . 1 . . . Total Orders 13 | . . . . . . . . . . . . . . . . 3 . . . . . 3 5 . . 2 STAY 4 | . . . . . . . . . . . . . . . . 1 . . . . . . 2 . . 1 FOLLOW 2 | . . . . . . . . . . . . . . . . . . . . . . . 2 . . . DROP 7 | . . . . . . . . . . . . . . . . 2 . . . . . 3 1 . . 1 Ally Attacks 467 | . . 7 1 19 15 . . . . 43 . . . . 9 21 . . 5 . 17 150 125 48 . 7 Total Damage 15524 | . . 127 21 328 533 . . . . 1056 . . . . 329 1467 . . 162 . 743 4177 4400 1704 . 477 Kills 88 | . . 2 1 6 4 . . . . 12 . . . . 3 6 . . . . 1 23 21 9 . . Allies Corrupted 5 | . . . 1 . . . . . . . . . . . . 1 . . . . . 2 . . . 1 Allies Melted 1 | . . . . . . . . . . . . . . . 1 . . . . . . . . . . . Intel | -11 -10 -10 -10 -9 -8 -7 -7 -7 -7 -6 -6 -6 -6 -6 -5 -5 -5 -5 -5 -4 -4 -4 -4 -4 -4 -3 ------- Run | Scr Mat Min Exi Min Mat Fac Low Low Zio Pro Fac Low Low Dat Pro Fac Upp Upp War Pro Fac Ext Cet Arc Hub Res Robot Analysis Total 1 | . 1 . . . . . . . . . . . . . . . . . . . . . . . . . Derelict Logs Recovered 14 | . . 2 . 1 . . 1 2 2 1 . 1 . . 2 . 1 . . 1 . . . . . . Drone Launches . | . . . . . . . . . . . . . . . . . . . . . . . . . . . Drone Recoveries . | . . . . . . . . . . . . . . . . . . . . . . . . . . . Decoded 0b10 Intel 15 | . . . . . . . . . . . . . . . . 15 . . . . . . . . . . Traps 2 | . . . . . . . . . . . . . . . . 2 . . . . . . . . . . Items 8 | . . . . . . . . . . . . . . . . 8 . . . . . . . . . . Machines 4 | . . . . . . . . . . . . . . . . 4 . . . . . . . . . . Guards 1 | . . . . . . . . . . . . . . . . 1 . . . . . . . . . . Zionite Intel Received 5 | . . . . . . . . . . . 1 . . . . 1 . . . . . 1 2 . . . Component Stockpiles 1 | . . . . . . . . . . . . . . . . 1 . . . . . . . . . . Component Schematics 1 | . . . . . . . . . . . . . . . . . . . . . . . 1 . . . Prototype Schematics 1 | . . . . . . . . . . . . . . . . . . . . . . 1 . . . . Unaware Schematics 1 | . . . . . . . . . . . . . . . . . . . . . . . 1 . . . Unaware Analyses 1 | . . . . . . . . . . . 1 . . . . . . . . . . . . . . . Exploration | -11 -10 -10 -10 -9 -8 -7 -7 -7 -7 -6 -6 -6 -6 -6 -5 -5 -5 -5 -5 -4 -4 -4 -4 -4 -4 -3 ------------- Run | Scr Mat Min Exi Min Mat Fac Low Low Zio Pro Fac Low Low Dat Pro Fac Upp Upp War Pro Fac Ext Cet Arc Hub Res Turns Passed 13545 | 75 696 738 852 655 531 1911 206 124 637 188 281 105 719 36 501 1584 244 106 661 245 379 587 368 73 17 1026 Spaces Moved 12435 | 41 358 446 471 372 212 1141 333 275 1063 309 356 189 797 80 529 1703 323 157 639 360 417 466 355 116 30 897 Core 25 | 3 . . . . . . . . . . . . . . . . . . . . . . . . . 22 Treads 2725 | 38 358 446 471 372 212 828 . . . . . . . . . . . . . . . . . . . . Legs 6 | . . . . . . . . . . . . . . . 6 . . . . . . . . . . . Wheels . | . . . . . . . . . . . . . . . . . . . . . . . . . . . Hover 8833 | . . . . . . 313 333 275 1063 309 356 189 797 80 263 1215 323 157 639 360 417 466 355 116 30 777 Flight 846 | . . . . . . . . . . . . . . . 260 488 . . . . . . . . . 98 Fastest Speed 43 | 50 160 160 160 160 160 45 45 45 45 45 45 45 45 43 43 45 62 62 50 50 45 50 45 45 45 45 Average Speed 79 | 151 160 160 160 160 160 135 46 45 45 45 45 45 45 43 58 56 65 62 59 51 66 73 73 45 45 72 Slowest Speed 300 | 160 180 160 180 160 160 180 108 45 45 45 45 45 104 43 150 111 68 62 62 55 101 107 105 45 45 300 Overloaded Moves . | . . . . . . . . . . . . . . . . . . . . . . . . . . . Propulsion Burnouts . | . . . . . . . . . . . . . . . . . . . . . . . . . . . Robots Hopped 1 | . . . . . . . . . . . . . . . . . . . . . . . . . . 1 Cave-ins Triggered 1 | . . . . . . . . . . . . . . . . . . . . . . . . . . 1 Exploration Rate (%) 54 | 3 70 88 89 83 28 39 57 56 87 57 10 34 74 68 68 51 51 38 72 74 18 82 72 81 5 29 Regions Visited 26 Branch Regions 19 Pre-discovered Areas 7 | . . 1 1 . . . . 1 2 . . . . 1 . . . . . 1 . . . . . . Known Exits Taken 18 | . . . . . . 1 1 1 1 1 1 1 . . 1 1 1 1 1 1 1 1 1 1 1 . Unknown Exits Taken 8 | 1 1 1 1 1 1 . . . . . . . 1 1 . . . . . . . . . . . . Scrap Searched 20 | . . 1 . 1 . . 1 1 5 1 . 2 3 . 1 . 2 2 . . . . . . . . Spaces Dug 133 | . . . . . 11 5 . . . 3 12 3 18 . 1 18 5 . . . 7 3 . . . 47 Terrain Destroyed 481 | . 1 . 8 3 131 5 . . . 3 12 3 51 . 2 22 5 . . . 7 4 . . 175 49 Melee 96 | . . . . . . 5 . . . 3 12 3 18 . 1 18 5 . . . 7 3 . . . 21 Projectile 10 | . . . . . 4 . . . . . . . . . . 2 . . . . . 1 . . 1 2 AOE 375 | . 1 . 8 3 127 . . . . . . . 33 . 1 2 . . . . . . . . 174 26 Terrain Rammed . | . . . . . . . . . . . . . . . . . . . . . . . . . . . Walls Destroyed . | . . . . . . . . . . . . . . . . . . . . . . . . . . . Machines Disabled . | . . . . . . . . . . . . . . . . . . . . . . . . . . . Actions | -11 -10 -10 -10 -9 -8 -7 -7 -7 -7 -6 -6 -6 -6 -6 -5 -5 -5 -5 -5 -4 -4 -4 -4 -4 -4 -3 --------- Run | Scr Mat Min Exi Min Mat Fac Low Low Zio Pro Fac Low Low Dat Pro Fac Upp Upp War Pro Fac Ext Cet Arc Hub Res Total 15192 | 49 426 468 536 418 298 1378 363 274 1220 353 423 202 1122 81 670 2200 336 164 922 386 498 666 454 127 31 1127 Wait 1584 | . 19 11 . 29 . 104 6 . 145 38 24 . 298 . 97 300 . 1 250 1 40 54 66 4 . 97 Move 12407 | 40 357 445 470 371 211 1140 332 274 1062 308 355 188 796 79 528 1702 322 156 638 359 416 465 354 115 29 895 Hop 1 | . . . . . . . . . . . . . . . . . . . . . . . . . . 1 Pick Up 82 | 2 10 7 2 3 3 9 2 . . 2 1 3 1 . 2 17 . 2 2 . 3 5 1 . . 5 Fast Attach 113 | 6 5 . . . 2 14 . . 7 . 1 3 . . 2 24 2 3 8 . 3 6 6 2 . 19 Attach 85 | . 2 . 1 . 6 16 3 . . . 6 1 1 2 5 16 2 . . 2 6 6 1 . . 9 Detach 44 | . . . . . . 6 2 . 4 . 2 . . . 1 14 . 1 2 . 3 3 3 1 . 2 Swap 68 | . 4 . . 2 13 10 1 . . . 5 . 2 . 2 12 . . 1 . 3 1 6 . 1 5 Drop 101 | . 2 3 5 4 4 11 1 . 2 2 . 3 . . 1 21 . 1 10 . 3 2 10 . . 16 Fire 240 | 1 27 2 18 8 59 46 10 . . . 14 . 5 . 4 12 . . . 9 4 13 . . 1 7 Melee 321 | . . . . . . 19 6 . . 3 15 4 19 . 28 79 10 . . 14 17 24 7 5 . 71 Ram 1 | . . . . . . . . . . . . . . . . . . . . 1 . . . . . . Kick . | . . . . . . . . . . . . . . . . . . . . . . . . . . . Crush 4 | . . . . 1 . 3 . . . . . . . . . . . . . . . . . . . . Escape Stasis 42 | . . . . . . . . . . . . . . . . 3 . . . . . 39 . . . . Rewire 99 | . . . 40 . . . . . . . . . . . . . . . 11 . . 48 . . . . Trap . | . . . . . . . . . . . . . . . . . . . . . . . . . . . Miscellaneous . | . . . . . . . . . . . . . . . . . . . . . . . . . . . Route ------- -11/Scrapyard -10/Materials (discovered 3 exits: [*Mat] / [*Min x2]) -10/Mines (discovered 2 exits: [*Mat] / *Exi) -10/Exiles -9/Mines (discovered 2 exits: *Mat x2) -8/Materials -7/Factory (discovered 2 exits: *Fac / *Low) -7/Lower Caves -7/Lower Caves (discovered 2 exits: *Fac / *Zio) -7/Zion -6/Proximity Caves -6/Factory (discovered 2 exits: Fac / *Low) -6/Lower Caves -6/Lower Caves -6/Data Miner -5/Proximity Caves -5/Factory (discovered 3 exits: *Fac x2 / *Upp) -5/Upper Caves -5/Upper Caves -5/Warlord -4/Proximity Caves -4/Factory -4/Extension (discovered 2 exits: *Res / *Cet) -4/Cetus (discovered 2 exits: *Res / *Arc) -4/Archives (discovered 2 exits: *Hub x2) -4/Hub_04(d) -3/Research History --------- Turn | Location | Event 37 | -11/Scrapyard | Discovered new exit (range 16) 76 | -11/Scrapyard | Entered Materials 76 | -10/Materials | Discovered new exit (range 7) 243 | -10/Materials | Discovered new exit (range 8) 316 | -10/Materials | Build established: Mutant 483 | -10/Materials | Discovered new exit (range 16) 745 | -10/Materials | Central database locked down 772 | -10/Materials | Entered Mines 990 | -10/Mines | Received a Rocket Launcher from a helpful Derelict 1035 | -10/Mines | Learned location of Zion (-7) 1172 | -10/Mines | Discovered new exit (range 13) 1289 | -10/Mines | Learned Materials garrison access intel 1327 | -10/Mines | Found a hidden stash of uninstalled traps 1370 | -10/Mines | Received a Mining Laser from a helpful Derelict 1499 | -10/Mines | Deemed a non-threat by the Exiles lab entrance 1499 | -10/Mines | Discovered new exit (range 5) 1510 | -10/Mines | Entered Exiles 1510 | -10/Exiles | Found Exiles lab destroyed 1510 | -10/Exiles | Accompanied by 3 allies 1540 | -10/Exiles | Led the pair of lost Derelicts to a safe place 2189 | -10/Exiles | Opened EX-Vault 2201 | -10/Exiles | Found Flying Fortress v7 2343 | -10/Exiles | Discovered new exit (range 12) 2362 | -10/Exiles | Entered Mines 2362 | -9/Mines | Accompanied by 4 allies 2366 | -9/Mines | Build established: Commander-Mutant 2436 | -9/Mines | Learned Materials garrison access intel 2484 | -9/Mines | Met a Derelict bent on vengeance 2790 | -9/Mines | Build established: Mutant 2840 | -9/Mines | A weapon hastily lodged in a ceiling crevice suddenly fell to the ground 2858 | -9/Mines | Discovered new exit (range 9) 2978 | -9/Mines | Discovered new exit (range 10) 3017 | -9/Mines | Entered Materials 3017 | -8/Materials | Accompanied by 2 allies 3017 | -8/Materials | Evolved 4 slots: Propulsion x1, Utility x3 3018 | -8/Materials | Loaded intel: 1 garrison access location 3226 | -8/Materials | Destroyed 7 combat bots 3334 | -8/Materials | Build established: Scavenger-Mutant 3521 | -8/Materials | Discovered new exit (range 15) 3548 | -8/Materials | Entered Factory 3548 | -7/Factory | Evolved 2 slots: Propulsion x1, Utility x1 4073 | -7/Factory | Lost 3 parts (1p1u1w) 4420 | -7/Factory | Lost 3 parts (2n1u) 4870 | -7/Factory | Discovered new exit (range 15) 4904 | -7/Factory | Identified exit to Factory 5114 | -7/Factory | System corruption reached 10% 5307 | -7/Factory | Found Prototype Launcher 5307 | -7/Factory | Identified Rocket Array 5397 | -7/Factory | Discovered new exit (range 8) 5455 | -7/Factory | Identified exit to Lower Caves 5459 | -7/Factory | Entered Lower Caves 5564 | -7/Lower Caves | Identified exit to Lower Caves 5665 | -7/Lower Caves | Entered another Lower Caves area 5672 | -7/Lower Caves | Discovered exit to Factory (range 12) 5710 | -7/Lower Caves | Learned location of Extension (-4) 5737 | -7/Lower Caves | Learned Factory emergency access door positions 5785 | -7/Lower Caves | Discovered new exit (range 12) 5788 | -7/Lower Caves | Identified exit to Zion 5789 | -7/Lower Caves | Entered Zion 5802 | -7/Zion | System corruption cleaned by Quarantine Array 5812 | -7/Zion | Discovered new exit (range 11) 5862 | -7/Zion | Learned location of 1 exit from Proximity Caves 5953 | -7/Zion | Given A8's code to call for help 5996 | -7/Zion | Found Prototype Hackware 5996 | -7/Zion | Identified Exp. Hacking Suite 6036 | -7/Zion | Learned location of Warlord (-5) 6122 | -7/Zion | Found Prototype Processor 6122 | -7/Zion | Identified Exp. Core Analyzer 6125 | -7/Zion | Found Prototype Processor 6125 | -7/Zion | Identified Exp. Terrain Scan Processor 6127 | -7/Zion | Found Prototype Processor 6127 | -7/Zion | Identified Exp. Target Analyzer 6135 | -7/Zion | Found Prototype Processor 6135 | -7/Zion | Identified Exp. Targeting Computer 6139 | -7/Zion | Found Prototype Processor 6139 | -7/Zion | Identified Exp. Armor Integrity Analyzer 6178 | -7/Zion | Imprinted 6180 | -7/Zion | Declared Zion's savior 6224 | -7/Zion | Gained Derelict followers 6246 | -7/Zion | Gained Derelict followers 6285 | -7/Zion | Identified exit to Proximity Caves 6426 | -7/Zion | Entered Proximity Caves 6426 | -6/Proximity Caves | Accompanied by 12 allies 6483 | -6/Proximity Caves | Learned 12 Factory zone layouts 6614 | -6/Proximity Caves | Entered Factory 6614 | -6/Factory | Evolved 2 slots: Utility x1, Weapon x1 6615 | -6/Factory | Identified exit to Factory 6805 | -6/Factory | Lost 3 parts (1n2w) 6880 | -6/Factory | Discovered new exit (range 14) 6882 | -6/Factory | Retrieved Zion intel report: Unaware Analyses 6895 | -6/Factory | Identified exit to Lower Caves 6895 | -6/Factory | Entered Lower Caves 6950 | -6/Lower Caves | Learned Factory emergency access door positions 6994 | -6/Lower Caves | Discovered new exit (range 15) 7000 | -6/Lower Caves | Identified exit to Lower Caves 7000 | -6/Lower Caves | Entered another Lower Caves area 7295 | -6/Lower Caves | Found Alien Artifact 7690 | -6/Lower Caves | Discovered new exit (range 13) 7719 | -6/Lower Caves | Entered Data Miner 7720 | -6/Data Miner | Discovered new exit (range 6) 7729 | -6/Data Miner | Met Data Miner 7736 | -6/Data Miner | Learned location of Section 7 (-2) 7736 | -6/Data Miner | Acquired the access code to Warlord's prototype stash 7743 | -6/Data Miner | Received God Mode back door access code from Data Miner 7753 | -6/Data Miner | Identified Core Expander 7753 | -6/Data Miner | Installed Core Expander, added new Weapon slot 7755 | -6/Data Miner | Entered Proximity Caves 7847 | -5/Proximity Caves | Escorted by Enhanced Grunt 7859 | -5/Proximity Caves | Attracted the attention of an 0b10 checkpoint 7915 | -5/Proximity Caves | Lost 8 parts (2p2n1u3w) 8027 | -5/Proximity Caves | Build established: Mutant 8044 | -5/Proximity Caves | Core integrity fell below 50% 8044 | -5/Proximity Caves | System corruption reached 10% 8067 | -5/Proximity Caves | Lost 4 parts (3n1u) 8247 | -5/Proximity Caves | Discovered exit to Factory (range 11) 8253 | -5/Proximity Caves | Learned location of 2 exits from Factory 8256 | -5/Proximity Caves | Entered Factory 8256 | -5/Factory | Evolved 2 slots: Power x1, Utility x1 8257 | -5/Factory | Identified exit to Factory 8301 | -5/Factory | Garrison activated, responded to threat 8348 | -5/Factory | Zion Heavy squad teleported in 8496 | -5/Factory | Zion Offense Resupply teleported in 8649 | -5/Factory | Fabricated Kinetic Spear? 8686 | -5/Factory | Fabricated Kinetic Spear (x1) 8748 | -5/Factory | Build established: Hacker-Mutant 8792 | -5/Factory | Spotted B-75 Beast 9063 | -5/Factory | Retrieved Zion intel report: Component Stockpiles 9064 | -5/Factory | Zion Kinetic Resupply teleported in 9207 | -5/Factory | Zion Heavy squad teleported in 9236 | -5/Factory | Zion Heavy squad teleported in 9408 | -5/Factory | Fabricated Cmb. Gravmag System? 9488 | -5/Factory | Zion Fire squad teleported in 9489 | -5/Factory | Core integrity fell below 50% 9682 | -5/Factory | Terminal network hard line cut 9786 | -5/Factory | Build established: Machinist-Mutant 9822 | -5/Factory | Discovered new exit (range 9) 9838 | -5/Factory | Identified exit to Upper Caves 9840 | -5/Factory | Entered Upper Caves 9902 | -5/Upper Caves | Learned Factory trap positions 9908 | -5/Upper Caves | Encountered a Warlord checkpoint 10049 | -5/Upper Caves | Lost 5 parts (1n2u2w) 10076 | -5/Upper Caves | Discovered new exit (range 14) 10083 | -5/Upper Caves | Identified exit to Upper Caves 10084 | -5/Upper Caves | Entered another Upper Caves area 10085 | -5/Upper Caves | Identified exit to Warlord 10090 | -5/Upper Caves | Build established: Hacker-Mutant 10190 | -5/Upper Caves | Entered Warlord 10212 | -5/Warlord | System corruption cleaned by Quarantine Array 10447 | -5/Warlord | Visited the Vortex Lab 10452 | -5/Warlord | Found Prototype Energy Cannon 10452 | -5/Warlord | Identified Vortex Cannon 10456 | -5/Warlord | Warlord's base attacked by MAIN.C 10480 | -5/Warlord | Rebuked by Warlord 10490 | -5/Warlord | Opened Warlord's prototype stash 10495 | -5/Warlord | Found Prototype Reactor 10499 | -5/Warlord | Found Prototype Device 10499 | -5/Warlord | Identified Exp. Cloaking Device 10506 | -5/Warlord | Found Prototype Hackware 10506 | -5/Warlord | Identified System Mapper 10511 | -5/Warlord | Found Prototype Device 10511 | -5/Warlord | Identified Thermal Barrier 10520 | -5/Warlord | Found Exp. Core Analyzer 10806 | -5/Warlord | Warlord forces counterattacked 10827 | -5/Warlord | Opened side exit 10837 | -5/Warlord | Spotted Executioner 10845 | -5/Warlord | Discovered new exit (range 10) 10850 | -5/Warlord | Identified exit to Proximity Caves 10851 | -5/Warlord | Entered Proximity Caves 10889 | -4/Proximity Caves | Spotted B-86 Titan 10895 | -4/Proximity Caves | Learned location of Armory (-4) 11017 | -4/Proximity Caves | Lost 3 parts (1n1u1w) 11020 | -4/Proximity Caves | Destroyed 7 combat bots 11044 | -4/Proximity Caves | Attracted the attention of an 0b10 outpost 11090 | -4/Proximity Caves | Discovered exit to Factory (range 11) 11096 | -4/Proximity Caves | Entered Factory 11096 | -4/Factory | Evolved 2 slots: Utility x2 11097 | -4/Factory | Loaded intel: 94 trap records 11246 | -4/Factory | Fabricated Kinetic Spear (x1) 11292 | -4/Factory | Identified Vortex Chain Reactor 11315 | -4/Factory | Lost 4 parts (1p1n1u1w) 11345 | -4/Factory | Zion Hacker squad teleported in 11353 | -4/Factory | Incoming investigation squad redirected 11465 | -4/Factory | Discovered new exit (range 21) 11475 | -4/Factory | Identified exit to Extension 11475 | -4/Factory | Entered Extension 11532 | -4/Extension | Lost 3 parts (1n2w) 11537 | -4/Extension | Rescued a captive Derelict 11538 | -4/Extension | Zion Melee Resupply teleported in 11538 | -4/Extension | Rescued a captive Derelict 11567 | -4/Extension | Rescued A7 11580 | -4/Extension | Zion Hacking Resupply teleported in 11586 | -4/Extension | Found Prototype Hackware 11586 | -4/Extension | Identified Exp. System Shield 11706 | -4/Extension | Spotted B-86 Titan 11715 | -4/Extension | Rescued a captive Derelict 11725 | -4/Extension | First assault squad dispatched 11725 | -4/Extension | Spotted B-86 Titan 11734 | -4/Extension | Allies destroyed B-86 Titan 11738 | -4/Extension | Destroyed B-86 Titan 11740 | -4/Extension | Incoming assault squad redirected 11925 | -4/Extension | Retrieved Zion intel report: Prototype Schematics 11926 | -4/Extension | Zion Heavy squad teleported in 11967 | -4/Extension | Rescued a captive Derelict 11968 | -4/Extension | Zion Resource Resupply teleported in 11968 | -4/Extension | Rescued a captive Derelict 12003 | -4/Extension | Incoming assault squad redirected 12025 | -4/Extension | Discovered new exit (range 10) 12026 | -4/Extension | Discovered new exit (range 6) 12049 | -4/Extension | Identified exit to Cetus 12062 | -4/Extension | Entered Cetus 12062 | -4/Cetus | Accompanied by 13 allies (A7) 12067 | -4/Cetus | Acquired a Cetus Manufacturing Module code from A7 12069 | -4/Cetus | Spotted Cetus Guard 12069 | -4/Cetus | Spotted Cetus Guard 12069 | -4/Cetus | Spotted Cetus Guard 12069 | -4/Cetus | Spotted Cetus Guard 12074 | -4/Cetus | Allies destroyed Cetus Guard 12092 | -4/Cetus | Allies destroyed Cetus Guard 12093 | -4/Cetus | Allies destroyed Cetus Guard 12095 | -4/Cetus | Extracted ID and sensor layout for unrecognized location from A7's data core 12147 | -4/Cetus | Started Cetus Manufacturing Module 12151 | -4/Cetus | Zion Hover Resupply teleported in 12172 | -4/Cetus | Manufactured an Enhanced Grunt 12194 | -4/Cetus | Retrieved Zion intel report: Component Schematics 12197 | -4/Cetus | Manufactured an Enhanced Grunt 12198 | -4/Cetus | Retrieved Zion intel report: Unaware Schematics 12199 | -4/Cetus | Zion Light squad teleported in 12222 | -4/Cetus | Manufactured an Enhanced Grunt 12247 | -4/Cetus | Manufactured an Enhanced Grunt 12247 | -4/Cetus | Discovered new exit (range 16) 12268 | -4/Cetus | Spotted Cetus Guard 12268 | -4/Cetus | Spotted Cetus Guard 12272 | -4/Cetus | Manufactured an Enhanced Grunt 12282 | -4/Cetus | Spotted Cetus Guard 12285 | -4/Cetus | Spotted Cetus Guard 12291 | -4/Cetus | Allies destroyed Cetus Guard 12293 | -4/Cetus | Allies destroyed Cetus Guard 12293 | -4/Cetus | Allies destroyed Cetus Guard 12304 | -4/Cetus | Discovered new exit (range 15) 12313 | -4/Cetus | Scared off Revision 17 12391 | -4/Cetus | Zion Light squad teleported in 12403 | -4/Cetus | Identified exit to Archives 12430 | -4/Cetus | Entered Archives 12430 | -4/Archives | Accompanied by 16 allies 12435 | -4/Archives | Met Zhirov 12441 | -4/Archives | Reinforcements dispatched to Archives 12448 | -4/Archives | Unable to access archive contents 12453 | -4/Archives | Discovered new exit (range 14) 12467 | -4/Archives | Discovered new exit (range 16) 12486 | -4/Archives | Reinforcements dispatched to Archives 12488 | -4/Archives | Identified exit to Hub_04(d) 12503 | -4/Archives | Entered Hub_04(d) 12506 | -4/Hub_04(d) | Discovered new exit (range 7) 12508 | -4/Hub_04(d) | Identified exit to Research 12518 | -4/Hub_04(d) | Network Hub disabled 12520 | -4/Hub_04(d) | Entered Research 12520 | -3/Research | Evolved 2 slots: Utility x2 12587 | -3/Research | Found Fusion Bomb Launcher 12675 | -3/Research | Zion Infowar Resupply teleported in 12768 | -3/Research | Crushed by falling debris 12768 | -3/Research | System corruption reached 10% 12799 | -3/Research | Spotted B-86 Titan 12886 | -3/Research | Fabricated Adv. Actuator Array (x1) 12955 | -3/Research | Build established: Scavenger-Mutant 12964 | -3/Research | Found Enh. Force Lance 13314 | -3/Research | Lost 3 parts (1n2u) 13386 | -3/Research | Zion Heavy squad teleported in 13437 | -3/Research | Lost 8 parts (1p2n3u2w) 13472 | -3/Research | System corruption reached 30% 13511 | -3/Research | Core integrity fell below 50% 13520 | -3/Research | First assault squad dispatched 13536 | -3/Research | Destroyed 7 combat bots 13539 | -3/Research | Core integrity fell below 20% 13546 | -3/Research | Destroyed by P-80 Master with Gamma Rifle Last Messages --------------- 13532_ Penetrated by Slug. 13532_ Slug penetrates Wall. 13533_ System corrupted: Gamma Rifle targeting data glitched. 13534_ XYFI10 FB OZT2BI> 011=RD < 13535_ U-05 Engineer lays Concrete. 13535_ P-80 Master resets G-67 Veteran, system corruption cleaned. 13535_ Gamma Rifle destroyed. 13535_ Slug penetrates G-67 Veteran. 13535_ Slug penetrates Wall. 13536_ U-05 Engineer builds a Wall. 13536_ Acquired Gamma Rifle. 13539_ Gamma Rifle destroyed. 13540_ G-67 Veteran suffers critical hit. 13540_ G-67 Veteran destroyed. 13541_ Acquired Gamma Rifle. 13541_ Gamma Rifle destroyed. 13541_ Penetrated by Slug. 13541_ Slug penetrates Wall. 13541_ P-80 Master resets Y-72 Warden, system corruption cleaned. 13542_ Acquired 32 matter. Map ----- +----------------------------------------------------+ | | | | | | | | | | | | | ?????????????????????????????????????????????????? | | ?????????????????????????????????????????????????? | | ?????????????????????????????????????????????????? | | ?????????????????????????????????????????????????? | | ?????????????????????????????????????????????????? | | ?????????????????????????????????????????????????? | | ????????????????????????????????????????????????? | | #???????????????????????????????????????????????? | | #???????????????????????????????????????????????? | | #???????????????????????????????????????????????? | | #???????????????????????????????????????????????? | | #???????????????????????????????????????????????? | | #???????????????????????????????????????????????? | | #???????????????????????????????????????????????? | | +??????????????????????????###??????????????????? | | #??????????????????#??###### ####???????????????? | | #??????????????????# ## # = #???????????????? | | #??????????????????# # = = #???????????????? | | ######################p%g% != #???????????????? | | !=%%%!up=@! !% #???????????????? | | ########+######p%Y[!== #???????????????? | | #????? ??## = %!! #???????????????? | | #????# #?# #######???????????????? | | ###+##+#????# ! #?#### ?????????????????????? | | #? ???????# #????###?????????????????????? | | #? ???????# #????????????????????????????? | | # ??????# #????????????????????????????? | | # !/ ??????########????????????????????????????? | | # != ?????????????????????????????????????????? | | # ! ?????????????????????????????????????????? | | ## ????????????????????????????????????????? | | ## ????????????????????????????????????????? | | ## ???????????????????????????????????????? | | #########???????????????????????????????????????? | | #???????????????????????????????????????????????? | | #???????????????????????????????????????????????? | | #???????????????????????????????????????????????? | | #???????????????????????????????????????????????? | | #???????????????????????????????????????????????? | | #???????????????????????????????????????????????? | | ###########?????????????????????????????????????? | | # #?????????????????????????????????????? | | # #?????????????????????????????????????? | | # #?????????????????????????????????????? | +----------------------------------------------------+ Best States ------------- Heat Dissipation 81 Coolant Potential 65 Energy Generation 55 Energy Capacity 700 Matter Stores 300 Matter Capacity 300 Sight Range 22 Robot Scan Range 22 Terrain Scan Range 18 Terrain Scan Density 10 Jamming Range 14 Cloak Strength 4 Armor Coverage 450 Resistance: EM 25 Melee Speed Boost 20 Phase Shifting 10 Evasion (%) 70 Melee Accuracy 24 Target Analysis 8 Core Analysis 15 Armor Integrity Analysis 90 Recoil Reduction 4 Offensive Hacking 34 Defensive Hacking 16 Item Schematics ----------------- Combat Drone Bay | -6/Data Miner | Free Lgt. Regenerative Plating | -6/Data Miner | Free Exp. Flexi-carbon Leg | -6/Data Miner | Free Exp. Cesium-ion Thruster | -6/Data Miner | Free Exp. Terrain Scanner | -6/Data Miner | Free Exp. Targeting Computer | -6/Data Miner | Free Plasma Sword | -6/Data Miner | Free Kinetic Spear | -6/Data Miner | Free Gravmag Array | -5/Factory | Scanalyzed Cmb. Gravmag System | -5/Factory | Scanalyzed Lrn. Phase Cannon | -4/Extension | Z-intel Lgt. Antimatter Cannon | -4/Extension | Z-intel Gravity Neutralizing Apparatus | -4/Extension | Z-intel Gui. EMP Blaster | -4/Extension | Z-intel Adv. Plasma Rifle | -4/Extension | Z-intel Cld. Plasma Rifle | -4/Extension | Z-intel Stealth Drone Bay | -4/Extension | Z-intel Scatter Rocket Array | -4/Extension | Z-intel Energy Mantle | -4/Extension | Z-intel Adv. Energy Well | -4/Extension | Z-intel Prc. Energy Filter | -4/Extension | Z-intel Med. Reflective Plating | -4/Cetus | Z-intel Adv. Plasma Cannon | -4/Cetus | Z-intel Mni. Drone Bay | -4/Cetus | Z-intel Imp. Force Field | -4/Cetus | Z-intel Linear Gravjet | -4/Cetus | Z-intel Dispersion Rifle | -4/Cetus | Z-intel Imp. Hacking Suite | -4/Cetus | Z-intel Lrn. Tractor Beam | -4/Cetus | Z-intel Lrn. Sensor Array | -4/Cetus | Z-intel Imp. Target Analyzer | -4/Cetus | Z-intel Imp. Gyrokinetic Inverter | -4/Cetus | Z-intel Greatsword | -4/Cetus | Z-intel Adv. Melee Analysis Suite | -4/Cetus | Z-intel Adv. Actuator Array | -4/Cetus | Z-intel Myomer Leg | -4/Cetus | Z-intel Great Maul | -4/Cetus | Z-intel Robot Schematics ------------------ S-27 Virus | -6/Data Miner | Free G-50 Soldier | -6/Data Miner | Free L-41 Fighter | -6/Data Miner | Free X-72 Disruptor | -6/Data Miner | Free H-66 Slayer | -6/Data Miner | Free P-70 Sage | -6/Data Miner | Free I-36 Angel | -6/Data Miner | Free K-01 Serf | -4/Cetus | Z-intel A-02 Transporter | -4/Cetus | Z-intel H-77 Assassin | -4/Cetus | Z-intel Fabricated ------------ Kinetic Spear | x1 | -5/Factory Kinetic Spear | x1 | -5/Factory Cmb. Gravmag System | x2 | -5/Factory Kinetic Spear | x1 | -4/Factory Adv. Actuator Array | x1 | -3/Research Alien Tech Used ----------------- Core Expander Achievements -------------- Friend Of Zion Challenges ------------ None Game ------ Seed FluxHoverMembrane Manual? 0 Play Time 02:26:24 Cumulative 175.3 hours Start 2021.05.29 @ 13:07:02 End 2021.05.29 @ 15:37:21 Sessions 1 Manual Loads 0 Difficulty Rogue Special Mode None Game No. 222 Rogue 135 Adventurer 87 Explorer 0 Win Type - Total 4 Types 3/0/0/1/0/0/0/0/0 Lore% 64 Gallery% 73 Achievement% 60 Wizard Run 0 Options --------- ASCII 0 Keyboard 1 Movement Numpad Keybinds 0 Fullscreen 1 Font 18/Smallcaps Map View 76x50 Tactical HUD 1 Map Filters NONE Filters NONE Steam 1 RUN: 6e83798a-4b99-4c8e-a4cd-a48fa3903290